fUST/lending_fUST_20250224
["ID","MTS","AMOUNT","RATE_DAILY","PERIOD"]
[354304520,1740402644887,-151.0,0.00013945,2]
[354304521,1740402644897,-543.53,0.00013945,2]
[354304523,1740402644906,-1666.76,0.00013945,2]
[354304525,1740402644916,-7134.47062955,0.00013945,2]
[354304532,1740402644971,-293.33861973,0.00013698,2]
[354304535,1740402644983,-206.66138027,0.00013698,2]
[354304537,1740402644993,-151.0,0.0001378,2]
[354304539,1740402645002,-17446.29317718,0.00013945,2]
[354304541,1740402645014,-362.95619327,0.00013945,2]
[354304543,1740402645023,-574.3,0.00013945,2]
[354304545,1740402645034,-9014.82,0.00013945,2]
[354304547,1740402645043,-794.21,0.00013945,2]
[354304549,1740402645052,-917.36,0.00013945,2]
[354304551,1740402645061,-774.6,0.00013945,2]
[354304553,1740402645071,-667.71,0.00013945,2]
[354304555,1740402645080,-526.81,0.00013945,2]
[354304557,1740402645089,-500.0,0.00013945,2]
[354304559,1740402645099,-500.0,0.00013945,2]
[354304561,1740402645108,-1044.29,0.00013945,2]
[354304563,1740402645117,-3727.34133418,0.00013945,2]
[354304565,1740402645129,-1155.90866582,0.00013945,2]
[354304567,1740402645139,-500.0,0.00013945,2]
[354304569,1740402645148,-1843.02,0.00013945,2]
[354304571,1740402645157,-151.0,0.00013945,2]
[354304573,1740402645166,-500.0,0.00013945,2]
[354304575,1740402645178,-3422.45,0.00013945,2]
[354304577,1740402645188,-2163.7,0.00013945,2]
[354304579,1740402645198,-500.0,0.00013945,2]
[354304581,1740402645207,-500.0,0.00013945,2]
[354304583,1740402645217,-500.0,0.00013945,2]
[354304585,1740402645226,-500.0,0.00013945,2]
[354304587,1740402645236,-529.71,0.00013945,2]
[354304589,1740402645246,-500.0,0.00013945,2]
[354304591,1740402645256,-725.026153,0.00013945,2]
[354304593,1740402645266,-725.026153,0.00013945,2]
[354304595,1740402645275,-500.0,0.00013945,2]
[354304597,1740402645285,-981.79707646,0.00013945,2]
[354304602,1740402645373,-1385.47292354,0.00013945,2]
[354304603,1740402645383,-500.0,0.00013945,2]
[354304604,1740402645393,-157.098132,0.00013945,2]
[354304605,1740402645402,-500.0,0.00013945,2]
[354304607,1740402645412,-1050.71,0.00013945,2]
[354304609,1740402645422,-500.0,0.00013945,2]
[354304611,1740402645432,-357.63547253,0.00013945,2]
[354304613,1740402645442,-500.0,0.00013945,2]
[354304615,1740402645452,-283.40089524,0.00013945,2]
[354304617,1740402645464,-593.07910476,0.00013945,2]
[354304619,1740402645474,-252.95089524,0.00013945,2]
[354304622,1740402645487,-438.21910476,0.00013945,2]
[354304623,1740402645496,-161.96967346,0.00013945,2]
[354304625,1740402645506,-151.0,0.00013945,2]
[354304627,1740402645515,-151.0,0.00013945,2]
[354304629,1740402645524,-248.41365491,0.00013945,2]
[354304631,1740402645537,-251.58634509,0.00013945,2]
[354304633,1740402645546,-1347.54500942,0.00013945,2]
[354304637,1740402645558,-644.59499058,0.00013945,2]
[354304639,1740402645568,-696.27,0.00013945,2]
[354304641,1740402645578,-500.0,0.00013945,2]
[354304655,1740402645695,-500.0,0.00013945,2]
[354304657,1740402645706,-500.0,0.00013945,2]
[354304659,1740402645715,-738.86248521,0.00013945,2]
[354304662,1740402645729,-235.83751479,0.00013945,2]
[354304664,1740402645739,-299.93724965,0.00013945,2]
[354304666,1740402645750,-302.26275035,0.00013945,2]
[354304668,1740402645760,-692.47,0.00013945,2]
[354304670,1740402645770,-500.0,0.00013945,2]
[354304672,1740402645779,-500.0,0.00013945,2]
[354304674,1740402645790,-500.0,0.00013945,2]
[354304676,1740402645800,-157.72881217,0.00013945,2]
[354304695,1740402645997,-500.0,0.00013698,2]
[354304697,1740402646007,-151.0,0.0001378,2]
[354304699,1740402646017,-500.0,0.0001378,2]
[354304701,1740402646026,-151.0,0.0001378,2]
[354304703,1740402646036,-73.27583266,0.0001378,2]
[354304705,1740402646048,-77.72416734,0.0001378,2]
[354304707,1740402646058,-151.0,0.00013849,2]
[354304709,1740402646068,-500.0,0.00013863,2]
[354304712,1740402646078,-204.303702,0.00013863,2]
[354304714,1740402646088,-945.24118783,0.00013945,2]
[354304716,1740402646098,-500.0,0.00013945,2]
[354304718,1740402646108,-500.0,0.00013945,2]
[354304720,1740402646118,-711.22,0.00013945,2]
[354304722,1740402646128,-500.0,0.00013945,2]
[354304724,1740402646138,-151.0,0.00013945,2]
[354304726,1740402646147,-500.0,0.00013945,2]
[354304728,1740402646158,-151.0,0.00013945,2]
[354304730,1740402646168,-739.88,0.00013945,2]
[354304732,1740402646181,-1402.03,0.00013945,2]
[354304733,1740402646191,-500.0,0.00013945,2]
[354304735,1740402646201,-2678.05,0.00013945,2]
[354304737,1740402646210,-500.0,0.00013945,2]
[354304740,1740402646222,-2546.03,0.00013945,2]
[354304742,1740402646232,-151.0,0.00013945,2]
[354304744,1740402646242,-151.0,0.00013945,2]
[354304747,1740402646252,-500.0,0.00013945,2]
[354304748,1740402646264,-500.0,0.00013945,2]
[354304751,1740402646275,-551.37507611,0.00013945,2]
[354304753,1740402646284,-500.0,0.00013945,2]
[354304755,1740402646295,-500.0,0.00013945,2]
[354304757,1740402646305,-1000.0,0.00013947,2]
[354304759,1740402646314,-251.302884,0.00013947,2]
[354304761,1740402646323,-1000.0,0.00013948,2]
[354304763,1740402646333,-1000.0,0.00013976,2]
[354304765,1740402646343,-1002.90059045,0.00013976,2]
[354304767,1740402646353,-1000.0,0.00013979,2]
[354304769,1740402646362,-1000.0,0.00013983,2]
[354304771,1740402646371,-1000.0,0.00013985,2]
[354304773,1740402646381,-1000.0,0.00013988,2]
[354304775,1740402646393,-1000.0,0.00013994,2]
[354304777,1740402646404,-151.0,0.00013994,2]
[354304779,1740402646414,-725.026153,0.00013994,2]
[354304781,1740402646424,-725.026153,0.00013994,2]
[354304783,1740402646434,-1000.0,0.00013996,2]
[354304785,1740402646443,-151.0,0.00013997,2]
[354304787,1740402646453,-151.0,0.00013997,2]
[354304789,1740402646463,-151.0,0.00013997,2]
[354304791,1740402646473,-151.0,0.00013997,2]
[354304793,1740402646483,-1551.86471799,0.00013997,2]
[354304795,1740402646492,-258.15307817,0.00013998,2]
[354304797,1740402646505,-307.50496514,0.00013998,2]
[354304799,1740402646515,-114.08713586,0.00013999,2]
[354304801,1740402646527,-36.91286414,0.00013999,2]
[354304803,1740402646537,-2064.63892205,0.00014,5]
[354304805,1740402646549,-1161.04325639,0.00014,5]
[354304808,1740402646560,-499.58105022,0.00014,5]
[354304810,1740402646572,-1170.1764493,0.00014,5]
[354304812,1740402646582,-1112.62807795,0.00014,5]
[354304814,1740402646594,-4833.53588041,0.00014,5]
[354304816,1740402646603,-42531.90861518,0.00014,5]
[354304819,1740402646612,-906382.38504989,0.00014,15]
[354304821,1740402646624,-2477.62032581,0.00014,15]
[354304823,1740402646635,-512.37431689,0.00014,15]
[354304825,1740402646646,-662.88304606,0.00014,15]
[354304847,1740402646839,-500.0,0.00013698,2]
[354304849,1740402646849,-500.0,0.00013698,2]
[354304851,1740402646858,-17.7351344,0.00013698,2]
[354304853,1740402646869,-482.2648656,0.00013698,2]
[354304855,1740402646879,-500.0,0.0001378,2]
[354304857,1740402646888,-151.0,0.00013849,2]
[354304859,1740402646898,-151.0,0.00013863,2]
[354304862,1740402646911,-151.0,0.00013863,2]
[354304864,1740402646924,-151.0,0.00013945,2]
[354304867,1740402646937,-151.0,0.00013945,2]
[354304869,1740402646950,-153180.30225889,0.00014,15]
[354304871,1740402646962,-8844.5,0.00014,15]
[354304880,1740402647041,-370.6,0.00013698,2]
[354305508,1740403039220,164.7,0.00019,120]
[354305509,1740403040433,302.293458,9.041e-05,2]
[354305536,1740403832572,-504.0,0.00010137,2]
[354305537,1740403832583,-292.7366241,0.00012755,2]
[354305538,1740403832593,-275.3833759,0.00013286,2]
[354305543,1740403838206,-24.6166241,0.00013286,2]
[354305544,1740403838216,-9866.69230672,0.00013287,2]
[354305584,1740404121507,287.178785,9.041e-05,2]
[354305624,1740405032508,-381.2994864,0.00012528,2]
[354305625,1740405032518,-300.0,0.00013033,2]
[354305626,1740405032528,-5420.80181816,0.00013034,5]
[354305627,1740405032537,-21265.95430759,0.00013034,5]
[354305628,1740405032547,-19601.91606613,0.00013034,2]
[354305629,1740405032556,-191.68993168,0.000134,2]
[354305630,1740405032565,-191.68993168,0.0001347,2]
[354305631,1740405032574,-174661.06872661,0.000135,2]
[354305632,1740405032583,-6143.32114805,0.000135,2]
[354305633,1740405032593,-191.68993168,0.0001354,2]
[354305634,1740405032601,-557.4308118,0.000136,2]
[354305635,1740405032611,-557.4308118,0.000136,2]
[354305636,1740405032620,-306.0,0.000136,2]
[354305637,1740405032629,-153.0,0.000136,2]
[354305638,1740405032639,-309.5573667,0.000136,2]
[354305639,1740405032648,-557.4308118,0.000136,2]
[354305640,1740405032657,-154.8331553,0.000136,2]
[354305641,1740405032667,-557.4308118,0.000136,2]
[354305642,1740405032676,-153.0,0.000136,2]
[354305643,1740405032685,-153.0,0.000136,2]
[354305644,1740405032694,-557.4308118,0.000136,2]
[354305645,1740405032703,-154.1472135,0.000136,2]
[354305646,1740405032712,-557.4308118,0.000136,2]
[354305647,1740405032720,-154.796407,0.000136,2]
[354305648,1740405032729,-153.0,0.000136,2]
[354305649,1740405032738,-153.0,0.000136,2]
[354305651,1740405032747,-557.4308118,0.000136,2]
[354305653,1740405032757,-191.68993168,0.0001361,2]
[354305655,1740405032766,-161.553356,0.00013629,3]
[354305657,1740405032775,-500.0,0.00013673,2]
[354305659,1740405032784,-500.35978952,0.00013673,2]
[354305661,1740405032794,-160.13890243,0.00013673,2]
[354305663,1740405032803,-500.0,0.00013673,2]
[354305665,1740405032812,-500.0,0.00013673,2]
[354305667,1740405032821,-500.0,0.00013673,2]
[354305669,1740405032830,-500.0,0.00013673,2]
[354305671,1740405032840,-500.0,0.00013673,2]
[354305673,1740405032849,-500.0,0.00013673,2]
[354305674,1740405032859,-500.0,0.00013673,2]
[354305676,1740405032868,-500.0,0.00013673,2]
[354305678,1740405032878,-151.13251763,0.00013673,2]
[354305681,1740405032887,-500.0,0.00013673,2]
[354305683,1740405032897,-191.68993168,0.0001368,2]
[354305684,1740405032906,-302.0,0.0001369,2]
[354305687,1740405032918,-200.22322523,0.00013697,2]
[354305688,1740405032928,-256.43,0.00013697,2]
[354305691,1740405032938,-273.85611135,0.00013697,2]
[354305692,1740405032948,-500.0,0.00013697,2]
[354305693,1740405032958,-500.0,0.00013697,2]
[354305694,1740405032968,-500.0,0.00013697,2]
[354305696,1740405032981,-500.0,0.00013697,2]
[354305698,1740405032990,-500.0,0.00013697,2]
[354305700,1740405033000,-500.0,0.00013697,2]
[354305702,1740405033011,-500.0,0.00013697,2]
[354305704,1740405033020,-500.0,0.00013697,2]
[354305705,1740405033029,-558.40532746,0.00013697,2]
[354305706,1740405033043,-500.0,0.00013697,2]
[354305707,1740405033053,-600.0,0.00013697,2]
[354305708,1740405033062,-500.0,0.00013697,2]
[354305709,1740405033072,-500.0,0.00013697,2]
[354305710,1740405033081,-500.0,0.00013697,2]
[354305711,1740405033091,-500.0,0.00013697,2]
[354305712,1740405033100,-500.0,0.00013697,2]
[354305713,1740405033109,-500.0,0.00013697,2]
[354305714,1740405033119,-500.0,0.00013697,2]
[354305715,1740405033128,-173.95448491,0.00013697,2]
[354305716,1740405033138,-500.0,0.00013697,2]
[354305717,1740405033148,-500.0,0.00013697,2]
[354305718,1740405033157,-500.0,0.00013697,2]
[354305719,1740405033167,-218.29977229,0.00013697,2]
[354305720,1740405033178,-500.0,0.00013698,2]
[354305721,1740405033187,-500.0,0.00013698,2]
[354305722,1740405033197,-500.0,0.00013698,2]
[354305723,1740405033206,-500.0,0.00013698,2]
[354305724,1740405033216,-500.0,0.00013698,2]
[354305725,1740405033225,-500.0,0.00013698,2]
[354305726,1740405033235,-452.62939977,0.00013698,2]
[354305727,1740405033245,-500.0,0.00013698,2]
[354305728,1740405033255,-500.0,0.00013698,2]
[354305729,1740405033266,-188.93042321,0.00013698,2]
[354305730,1740405033276,-500.0,0.00013698,2]
[354305731,1740405033285,-500.0,0.00013698,2]
[354305732,1740405033295,-500.0,0.00013698,2]
[354305733,1740405033304,-500.0,0.00013698,2]
[354305734,1740405033314,-500.0,0.00013698,2]
[354305735,1740405033324,-500.0,0.00013698,2]
[354305736,1740405033333,-500.0,0.00013698,2]
[354305737,1740405033343,-500.0,0.00013698,2]
[354305738,1740405033352,-500.0,0.00013698,2]
[354305739,1740405033361,-500.0,0.00013698,2]
[354305740,1740405033371,-186.99077554,0.00013698,2]
[354305741,1740405033381,-500.0,0.00013698,2]
[354305742,1740405033390,-500.0,0.00013698,2]
[354305743,1740405033399,-500.0,0.00013698,2]
[354305744,1740405033409,-500.0,0.00013698,2]
[354305745,1740405033419,-543.88468201,0.00013698,2]
[354305746,1740405033428,-500.0,0.00013698,2]
[354305747,1740405033437,-500.0,0.00013698,2]
[354305748,1740405033447,-500.0,0.00013698,2]
[354305749,1740405033456,-500.0,0.00013698,2]
[354305750,1740405033466,-500.0,0.00013698,2]
[354305751,1740405033476,-500.0,0.00013698,2]
[354305752,1740405033486,-500.0,0.00013698,2]
[354305753,1740405033497,-500.0,0.00013698,2]
[354305754,1740405033507,-500.30870364,0.00013698,2]
[354305755,1740405033518,-500.0,0.00013698,2]
[354305756,1740405033528,-500.0,0.00013698,2]
[354305757,1740405033539,-333.77261461,0.00013698,2]
[354305758,1740405033549,-500.0,0.00013698,2]
[354305759,1740405033559,-500.0,0.00013698,2]
[354305760,1740405033570,-646.81561276,0.00013698,2]
[354305761,1740405033580,-500.0,0.00013698,2]
[354305762,1740405033590,-500.0,0.00013698,2]
[354305763,1740405033600,-500.0,0.00013698,2]
[354305764,1740405033609,-458.36794004,0.00013698,2]
[354305765,1740405033619,-500.0,0.00013698,2]
[354305766,1740405033630,-501.35870065,0.00013698,2]
[354305767,1740405033640,-500.0,0.00013698,2]
[354305768,1740405033650,-500.0,0.00013698,2]
[354305769,1740405033660,-500.0,0.00013698,2]
[354305770,1740405033669,-500.0,0.00013698,2]
[354305771,1740405033680,-500.0,0.00013698,2]
[354305772,1740405033690,-500.0,0.00013698,2]
[354305773,1740405033700,-418.66492704,0.00013698,2]
[354305774,1740405033710,-500.0,0.00013698,2]
[354305775,1740405033720,-500.0,0.00013698,2]
[354305776,1740405033730,-509.77496748,0.00013698,2]
[354305777,1740405033740,-500.0,0.00013698,2]
[354305778,1740405033750,-500.0,0.00013698,2]
[354305779,1740405033760,-500.0,0.00013698,2]
[354305780,1740405033771,-502.32481971,0.00013698,2]
[354305781,1740405033782,-500.0,0.00013698,2]
[354305782,1740405033791,-443.64199108,0.00013698,2]
[354305783,1740405033801,-500.0,0.00013698,2]
[354305784,1740405033810,-504.97403418,0.00013698,2]
[354305785,1740405033820,-500.0,0.00013698,2]
[354305786,1740405033829,-500.0,0.00013698,2]
[354305787,1740405033840,-500.0,0.00013698,2]
[354305788,1740405033849,-500.0,0.00013698,2]
[354305789,1740405033858,-500.0,0.00013698,2]
[354305790,1740405033867,-500.0,0.00013698,2]
[354305791,1740405033877,-500.0,0.00013698,2]
[354305792,1740405033886,-1230.86,0.00013698,2]
[354305793,1740405033896,-500.0,0.00013698,2]
[354305794,1740405033905,-500.0,0.00013698,2]
[354305795,1740405033916,-298.20826084,0.00013698,2]
[354305796,1740405033926,-500.0,0.00013698,2]
[354305797,1740405033936,-500.0,0.00013698,2]
[354305798,1740405033946,-500.0,0.00013698,2]
[354305799,1740405033960,-500.0,0.00013698,2]
[354305800,1740405033970,-500.0,0.00013698,2]
[354305801,1740405033980,-500.0,0.00013698,2]
[354305802,1740405033991,-500.0,0.00013698,2]
[354305803,1740405034001,-504.14866458,0.00013698,2]
[354305804,1740405034011,-594.82,0.00013698,2]
[354305805,1740405034020,-500.0,0.00013698,2]
[354305806,1740405034030,-500.0,0.00013698,2]
[354305807,1740405034039,-500.0,0.00013698,2]
[354305808,1740405034049,-500.0,0.00013698,2]
[354305809,1740405034058,-500.0,0.00013698,2]
[354305810,1740405034068,-500.0,0.00013698,2]
[354305811,1740405034077,-500.0,0.00013698,2]
[354305812,1740405034087,-500.0,0.00013698,2]
[354305813,1740405034097,-500.0,0.00013698,2]
[354305814,1740405034106,-500.0,0.00013698,2]
[354305815,1740405034115,-504.33723415,0.00013698,2]
[354305816,1740405034125,-500.0,0.00013698,2]
[354305817,1740405034134,-500.0,0.00013698,2]
[354305818,1740405034143,-500.0,0.00013698,2]
[354305819,1740405034152,-500.0,0.00013698,2]
[354305820,1740405034161,-500.0,0.00013698,2]
[354305821,1740405034172,-500.0,0.00013698,2]
[354305822,1740405034183,-500.0,0.00013698,2]
[354305823,1740405034193,-500.0,0.00013698,2]
[354305824,1740405034203,-500.0,0.00013698,2]
[354305825,1740405034213,-500.0,0.00013698,2]
[354305826,1740405034223,-500.0,0.00013698,2]
[354305827,1740405034232,-390.70122922,0.00013698,2]
[354305828,1740405034242,-623.94,0.00013698,2]
[354305829,1740405034252,-500.0,0.00013698,2]
[354305830,1740405034262,-502.6199509,0.00013698,2]
[354305831,1740405034271,-500.0,0.00013698,2]
[354305832,1740405034280,-500.0,0.00013698,2]
[354305833,1740405034290,-500.0,0.00013698,2]
[354305834,1740405034299,-500.0,0.00013698,2]
[354305835,1740405034308,-500.0,0.00013698,2]
[354305836,1740405034317,-500.0,0.00013698,2]
[354305837,1740405034327,-501.35392252,0.00013698,2]
[354305838,1740405034336,-500.0,0.00013698,2]
[354305839,1740405034346,-500.0,0.00013698,2]
[354305840,1740405034355,-500.0,0.00013698,2]
[354305841,1740405034364,-592.95,0.00013698,2]
[354305842,1740405034374,-500.0,0.00013698,2]
[354305843,1740405034384,-500.0,0.00013698,2]
[354305844,1740405034394,-500.0,0.00013698,2]
[354305845,1740405034404,-500.0,0.00013698,2]
[354305846,1740405034414,-500.0,0.00013698,2]
[354305847,1740405034424,-624.75736723,0.00013698,2]
[354305848,1740405034434,-500.0,0.00013698,2]
[354305849,1740405034443,-500.0,0.00013698,2]
[354305850,1740405034453,-500.0,0.00013698,2]
[354305851,1740405034463,-500.0,0.00013698,2]
[354305852,1740405034472,-345.92067424,0.00013698,2]
[354305853,1740405034482,-500.0,0.00013698,2]
[354305854,1740405034491,-500.0,0.00013698,2]
[354305855,1740405034501,-500.0,0.00013698,2]
[354305856,1740405034511,-500.0,0.00013698,2]
[354305857,1740405034520,-500.0,0.00013698,2]
[354305858,1740405034529,-503.50200437,0.00013698,2]
[354305859,1740405034539,-500.0,0.00013698,2]
[354305860,1740405034549,-500.0,0.00013698,2]
[354305861,1740405034558,-500.0,0.00013698,2]
[354305862,1740405034568,-500.0,0.00013698,2]
[354305863,1740405034577,-500.0,0.00013698,2]
[354305864,1740405034587,-500.0,0.00013698,2]
[354305865,1740405034596,-500.0,0.00013698,2]
[354305866,1740405034605,-500.0,0.00013698,2]
[354305867,1740405034615,-500.0,0.00013698,2]
[354305868,1740405034624,-500.0,0.00013698,2]
[354305869,1740405034633,-500.0,0.00013698,2]
[354305870,1740405034643,-500.0,0.00013698,2]
[354305871,1740405034653,-500.0,0.00013698,2]
[354305872,1740405034662,-385.18211628,0.00013698,2]
[354305873,1740405034672,-500.0,0.00013698,2]
[354305874,1740405034681,-500.0,0.00013698,2]
[354305875,1740405034690,-438.59829934,0.00013698,2]
[354305876,1740405034699,-500.0,0.00013698,2]
[354305877,1740405034709,-500.0,0.00013698,2]
[354305878,1740405034718,-500.0,0.00013698,2]
[354305879,1740405034728,-259.32308056,0.00013698,2]
[354305880,1740405034737,-500.0,0.00013698,2]
[354305881,1740405034746,-500.0,0.00013698,2]
[354305882,1740405034756,-613.57,0.00013698,2]
[354305883,1740405034765,-500.0,0.00013698,2]
[354305884,1740405034774,-500.0,0.00013698,2]
[354305885,1740405034783,-500.0,0.00013698,2]
[354305886,1740405034793,-500.0,0.00013698,2]
[354305887,1740405034802,-500.0,0.00013698,2]
[354305888,1740405034811,-500.0,0.00013698,2]
[354305889,1740405034820,-500.0,0.00013698,2]
[354305890,1740405034830,-500.0,0.00013698,2]
[354305891,1740405034980,-500.0,0.00013698,2]
[354305892,1740405034995,-500.0,0.00013698,2]
[354305893,1740405035004,-500.0,0.00013698,2]
[354305894,1740405035014,-500.0,0.00013698,2]
[354305895,1740405035024,-523.50836409,0.00013698,2]
[354305896,1740405035033,-500.0,0.00013698,2]
[354305897,1740405035043,-500.0,0.00013698,2]
[354305898,1740405035052,-500.0,0.00013698,2]
[354305899,1740405035061,-500.0,0.00013698,2]
[354305900,1740405035071,-345.91555094,0.00013698,2]
[354305901,1740405035080,-500.0,0.00013698,2]
[354305902,1740405035090,-500.0,0.00013698,2]
[354305903,1740405035100,-500.0,0.00013698,2]
[354305904,1740405035109,-500.0,0.00013698,2]
[354305905,1740405035118,-500.0,0.00013698,2]
[354305906,1740405035127,-500.0,0.00013698,2]
[354305907,1740405035136,-500.0,0.00013698,2]
[354305908,1740405035145,-353.57322542,0.00013698,2]
[354305909,1740405035154,-500.29717499,0.00013698,2]
[354305910,1740405035163,-500.0,0.00013698,2]
[354305911,1740405035172,-500.0,0.00013698,2]
[354305912,1740405035181,-500.0,0.00013698,2]
[354305913,1740405035190,-500.0,0.00013698,2]
[354305914,1740405035199,-500.0,0.00013698,2]
[354305915,1740405035209,-216.05355176,0.00013698,2]
[354305916,1740405035218,-500.0,0.00013698,2]
[354305917,1740405035227,-500.0,0.00013698,2]
[354305918,1740405035236,-221.06531681,0.00013698,2]
[354305919,1740405035369,-279.62887342,0.00013698,2]
[354305920,1740405035379,-647.57134157,0.00013698,2]
[354305921,1740405035388,-327.45421337,0.00013698,2]
[354305934,1740405038387,-172.54578663,0.00013698,2]
[354305935,1740405038397,-500.0,0.00013698,2]
[354305936,1740405038406,-500.0,0.00013698,2]
[354305937,1740405038415,-500.0,0.00013698,2]
[354305938,1740405038428,-293.60199292,0.00013698,2]
[354305939,1740405038437,-500.0,0.00013698,2]
[354305940,1740405038447,-500.0,0.00013698,2]
[354305941,1740405038456,-500.0,0.00013698,2]
[354305942,1740405038465,-500.0,0.00013698,2]
[354305943,1740405038475,-500.0,0.00013698,2]
[354305944,1740405038484,-500.0,0.00013698,2]
[354305945,1740405038493,-500.0,0.00013698,2]
[354305946,1740405038502,-500.0,0.00013698,2]
[354305947,1740405038511,-332.05776779,0.00013698,2]
[354305948,1740405038523,-167.94223221,0.00013698,2]
[354305949,1740405038532,-500.0,0.00013698,2]
[354305950,1740405038542,-113.33069824,0.00013698,2]
[354305952,1740405038553,-386.66930176,0.00013698,2]
[354305954,1740405038562,-390.03724564,0.00013698,2]
[354305956,1740405038574,-109.96275436,0.00013698,2]
[354305959,1740405038583,-209.87457042,0.00013698,2]
[354305972,1740405040686,-290.12542958,0.00013698,2]
[354305973,1740405040696,-500.0,0.00013698,2]
[354305974,1740405040706,-533.62805799,0.00013698,2]
[354305975,1740405040716,-500.0,0.00013698,2]
[354305976,1740405040725,-500.0,0.00013698,2]
[354305977,1740405040735,-500.0,0.00013698,2]
[354305978,1740405040745,-504.44193704,0.00013698,2]
[354305979,1740405040754,-500.0,0.00013698,2]
[354305980,1740405040764,-500.0,0.00013698,2]
[354305981,1740405040773,-503.62472052,0.00013698,2]
[354305982,1740405040782,-500.0,0.00013698,2]
[354305983,1740405040791,-500.0,0.00013698,2]
[354305984,1740405040800,-500.0,0.00013698,2]
[354305985,1740405040809,-500.0,0.00013698,2]
[354305986,1740405040819,-500.0,0.00013698,2]
[354305987,1740405040828,-500.0,0.00013698,2]
[354305988,1740405040837,-596.30777638,0.00013698,2]
[354305989,1740405040846,-500.0,0.00013698,2]
[354305990,1740405040855,-500.0,0.00013698,2]
[354305991,1740405040864,-500.0,0.00013698,2]
[354305992,1740405040873,-500.0,0.00013698,2]
[354305993,1740405040882,-500.0,0.00013698,2]
[354305994,1740405040891,-500.0,0.00013698,2]
[354305995,1740405040901,-500.0,0.00013698,2]
[354305996,1740405040910,-500.0,0.00013698,2]
[354305997,1740405040919,-500.0,0.00013698,2]
[354305998,1740405040929,-500.0,0.00013698,2]
[354305999,1740405040938,-500.0,0.00013698,2]
[354306000,1740405040948,-500.0,0.00013698,2]
[354306001,1740405040960,-500.0,0.00013698,2]
[354306002,1740405040970,-500.0,0.00013698,2]
[354306003,1740405040979,-500.0,0.00013698,2]
[354306004,1740405040988,-500.0,0.00013698,2]
[354306005,1740405040997,-500.0,0.00013698,2]
[354306006,1740405041006,-500.0,0.00013698,2]
[354306007,1740405041015,-500.0,0.00013698,2]
[354306008,1740405041024,-338.00542148,0.00013698,2]
[354306009,1740405041033,-500.0,0.00013698,2]
[354306010,1740405041042,-500.0,0.00013698,2]
[354306011,1740405041051,-619.61,0.00013698,2]
[354306012,1740405041060,-500.0,0.00013698,2]
[354306013,1740405041068,-500.0,0.00013698,2]
[354306014,1740405041078,-500.0,0.00013698,2]
[354306015,1740405041087,-479.0,0.00013698,2]
[354306016,1740405041096,-1568.06,0.00013698,2]
[354306017,1740405041106,-500.0,0.00013698,2]
[354306018,1740405041115,-528.05960842,0.00013698,2]
[354306019,1740405041125,-4548.03,0.00013698,2]
[354306020,1740405041134,-500.0,0.00013698,2]
[354306021,1740405041143,-500.0,0.00013698,2]
[354306022,1740405041152,-500.0,0.00013698,2]
[354306023,1740405041161,-500.0,0.00013698,2]
[354306024,1740405041171,-745.18,0.00013698,2]